[Event "*** Titled Tuesday Blitz"]
[Site "Chess.com"]
[Date "2020.04.28"]
[Round "5"]
[White "dbrankovic68"]
[Black "Mikedannnn"]
[Result "1/2-1/2"]
[WhiteElo "2364"]
[BlackElo "2522"]
[TimeControl "180+1"]
[EndTime "10:54:36 PDT"]
[Termination "Game drawn by agreement"]

1. e4 {[%clk 0:03:00.1]} 1... c5 {[%clk 0:02:59.2]} 2. Nf3 {[%clk 0:03:00.1]}
2... e6 {[%clk 0:02:57.4]} 3. Qe2 {[%clk 0:02:59.8]} 3... a6 {[%clk 0:02:53.1]}
4. g3 {[%clk 0:02:58.6]} 4... Nc6 {[%clk 0:02:49.7]} 5. Bg2 {[%clk 0:02:58.5]}
5... d6 {[%clk 0:02:42.2]} 6. O-O {[%clk 0:02:57.6]} 6... Nf6 {[%clk 0:02:41.7]}
7. d3 {[%clk 0:02:53.3]} 7... Be7 {[%clk 0:02:41]} 8. Re1 {[%clk 0:02:50.1]}
8... O-O {[%clk 0:02:41.1]} 9. c3 {[%clk 0:02:50.3]} 9... Qc7 {[%clk 0:02:38.7]}
10. Nbd2 {[%clk 0:02:44.7]} 10... b5 {[%clk 0:02:34]} 11. h3 {[%clk 0:02:41]}
11... Bb7 {[%clk 0:02:33.6]} 12. Nf1 {[%clk 0:02:38.6]} 12... Rad8 {[%clk
0:02:31.2]} 13. N1h2 {[%clk 0:02:33.5]} 13... Rfe8 {[%clk 0:02:31]} 14. Ng4
{[%clk 0:02:31.6]} 14... Nxg4 {[%clk 0:02:29.4]} 15. hxg4 {[%clk 0:02:31.8]}
15... Bf8 {[%clk 0:02:23.6]} 16. d4 {[%clk 0:02:22.2]} 16... cxd4 {[%clk
0:01:11.3]} 17. cxd4 {[%clk 0:02:20.3]} 17... e5 {[%clk 0:01:05]} 18. d5 {[%clk
0:01:44.7]} 18... Nd4 {[%clk 0:01:05.3]} 19. Nxd4 {[%clk 0:01:44.2]} 19... exd4
{[%clk 0:01:06.2]} 20. Qd3 {[%clk 0:01:44.5]} 20... Bxd5 {[%clk 0:01:04.3]} 21.
Qxd4 {[%clk 0:01:44.5]} 21... Bb7 {[%clk 0:01:02.1]} 22. Bf4 {[%clk 0:01:43]}
22... Qc5 {[%clk 0:00:58.8]} 23. Rad1 {[%clk 0:01:19.6]} 23... Qxd4 {[%clk
0:00:57.2]} 24. Rxd4 {[%clk 0:01:18.9]} 24... g6 {[%clk 0:00:56.9]} 25. Red1
{[%clk 0:00:53.6]} 25... Bg7 {[%clk 0:00:55.1]} 26. e5 {[%clk 0:00:45.9]} 26...
Bxg2 {[%clk 0:00:53.1]} 27. Kxg2 {[%clk 0:00:44.8]} 27... Bxe5 {[%clk
0:00:53.7]} 28. Bxe5 {[%clk 0:00:45]} 28... Rxe5 {[%clk 0:00:51.4]} 29. Rxd6
{[%clk 0:00:45.3]} 29... Rxd6 {[%clk 0:00:51.1]} 30. Rxd6 {[%clk 0:00:45]} 30...
Re2 {[%clk 0:00:50.1]} 31. Rxa6 {[%clk 0:00:45.2]} 31... Rxb2 {[%clk 0:00:48.1]}
32. g5 {[%clk 0:00:43.7]} 32... Kg7 {[%clk 0:00:48]} 33. Rb6 {[%clk 0:00:37.3]}
33... Rxa2 {[%clk 0:00:44.2]} 34. Rxb5 {[%clk 0:00:36.7]} 1/2-1/2

[Event "*** Titled Tuesday Blitz"]
[Site "Chess.com"]
[Date "2020.04.28"]
[Round "5"]
[White "White_Ghost"]
[Black "MikaelyanArman"]
[Result "0-1"]
[WhiteElo "2450"]
[BlackElo "2745"]
[TimeControl "180+1"]
[EndTime "10:54:38 PDT"]
[Termination "MikaelyanArman won by resignation"]

1. d4 {[%clk 0:03:00.9]} 1... Nf6 {[%clk 0:02:58.9]} 2. c4 {[%clk 0:03:01]} 2...
g6 {[%clk 0:02:59.3]} 3. g3 {[%clk 0:03:00.8]} 3... Bg7 {[%clk 0:02:56.7]} 4.
Bg2 {[%clk 0:03:00.8]} 4... O-O {[%clk 0:02:57]} 5. Nc3 {[%clk 0:03:00.9]} 5...
c5 {[%clk 0:02:56.9]} 6. d5 {[%clk 0:02:58.9]} 6... d6 {[%clk 0:02:56.6]} 7. e4
{[%clk 0:02:57.3]} 7... e6 {[%clk 0:02:56.6]} 8. Nf3 {[%clk 0:02:56.3]} 8...
exd5 {[%clk 0:02:56.9]} 9. cxd5 {[%clk 0:02:48.1]} 9... Re8 {[%clk 0:02:57.2]}
10. Nd2 {[%clk 0:02:47.1]} 10... b5 {[%clk 0:02:57.6]} 11. O-O {[%clk
0:02:32.3]} 11... b4 {[%clk 0:02:57]} 12. Ne2 {[%clk 0:02:32.8]} 12... Ba6
{[%clk 0:02:56.8]} 13. Re1 {[%clk 0:02:31.5]} 13... Nbd7 {[%clk 0:02:56.9]} 14.
a3 {[%clk 0:02:21]} 14... Qb6 {[%clk 0:02:43.1]} 15. axb4 {[%clk 0:02:15.2]}
15... cxb4 {[%clk 0:02:44]} 16. Nf4 {[%clk 0:01:55.8]} 16... Ne5 {[%clk
0:02:37.7]} 17. Qa4 {[%clk 0:01:10.5]} 17... Bb7 {[%clk 0:02:28.8]} 18. Nb3
{[%clk 0:01:04.2]} 18... Nfg4 {[%clk 0:02:26.4]} 19. Re2 {[%clk 0:00:57.2]}
19... a5 {[%clk 0:02:23.4]} 20. h3 {[%clk 0:00:55.3]} 20... Ba6 {[%clk
0:01:59.2]} 21. Rc2 {[%clk 0:00:41.5]} 21... Bb5 {[%clk 0:01:47.1]} 22. Qa2
{[%clk 0:00:36.6]} 22... a4 {[%clk 0:01:42.1]} 23. hxg4 {[%clk 0:00:20.8]} 23...
axb3 {[%clk 0:01:42.1]} 24. Qxa8 {[%clk 0:00:21.7]} 24... bxc2 {[%clk 0:01:40]}
25. Qa7 {[%clk 0:00:20.1]} 25... Qxa7 {[%clk 0:01:34.9]} 26. Rxa7 {[%clk
0:00:21]} 26... g5 {[%clk 0:01:35.6]} 27. Nh5 {[%clk 0:00:21.4]} 27... Nd3
{[%clk 0:01:35.9]} 28. Bxg5 {[%clk 0:00:21.2]} 28... Bxb2 {[%clk 0:01:31.9]} 29.
Bf1 {[%clk 0:00:17.6]} 29... Bd4 {[%clk 0:01:29]} 30. Rb7 {[%clk 0:00:17.2]}
30... Ba6 {[%clk 0:01:21.6]} 31. Rd7 {[%clk 0:00:13.4]} 31... b3 {[%clk
0:01:19.3]} 32. Rxd6 {[%clk 0:00:12.6]} 32... b2 {[%clk 0:01:16.6]} 33. Rxa6
{[%clk 0:00:12.7]} 33... b1=Q {[%clk 0:01:14.8]} 34. Nf6+ {[%clk 0:00:10.1]}
34... Bxf6 {[%clk 0:01:14.2]} 35. Bxf6 {[%clk 0:00:11]} 35... c1=Q {[%clk
0:01:12.1]} 0-1

[Event "*** Titled Tuesday Blitz"]
[Site "Chess.com"]
[Date "2020.04.28"]
[Round "5"]
[White "Jospem"]
[Black "druskacik"]
[Result "0-1"]
[WhiteElo "2818"]
[BlackElo "2558"]
[TimeControl "180+1"]
[EndTime "10:54:41 PDT"]
[Termination "druskacik won by resignation"]

1. c4 {[%clk 0:03:00.9]} 1... e6 {[%clk 0:02:56.5]} 2. g3 {[%clk 0:03:01.1]}
2... d5 {[%clk 0:02:56.7]} 3. Nf3 {[%clk 0:03:02]} 3... dxc4 {[%clk 0:02:56.9]}
4. Bg2 {[%clk 0:03:02.9]} 4... a6 {[%clk 0:02:57]} 5. O-O {[%clk 0:03:03.2]}
5... Nc6 {[%clk 0:02:53.7]} 6. a4 {[%clk 0:02:56]} 6... Nf6 {[%clk 0:02:48]} 7.
Na3 {[%clk 0:02:56]} 7... e5 {[%clk 0:02:45.4]} 8. Nxc4 {[%clk 0:02:54]} 8... e4
{[%clk 0:02:39.9]} 9. Nfe5 {[%clk 0:02:51.7]} 9... Nxe5 {[%clk 0:02:33]} 10.
Nxe5 {[%clk 0:02:52.6]} 10... Qd4 {[%clk 0:02:29.1]} 11. Nxf7 {[%clk 0:02:23.6]}
11... Kxf7 {[%clk 0:02:27.6]} 12. Qb3+ {[%clk 0:02:24.1]} 12... Be6 {[%clk
0:02:05.7]} 13. Qxb7 {[%clk 0:02:23.4]} 13... Bd6 {[%clk 0:02:02.8]} 14. Qc6
{[%clk 0:02:13.5]} 14... Rab8 {[%clk 0:01:50.7]} 15. d3 {[%clk 0:01:54.7]} 15...
Rb6 {[%clk 0:01:35.6]} 16. Qc3 {[%clk 0:01:46.1]} 16... Qxc3 {[%clk 0:01:33]}
17. bxc3 {[%clk 0:01:47]} 17... exd3 {[%clk 0:01:33.5]} 18. exd3 {[%clk
0:01:46.1]} 18... Rb3 {[%clk 0:01:30.8]} 19. Bd2 {[%clk 0:01:45]} 19... Rb2
{[%clk 0:01:26.4]} 20. Be3 {[%clk 0:01:44.9]} 20... Rhb8 {[%clk 0:01:23.1]} 21.
c4 {[%clk 0:01:44.1]} 21... R8b3 {[%clk 0:01:16.7]} 22. c5 {[%clk 0:01:39.9]}
22... Be7 {[%clk 0:01:15.8]} 23. Rfc1 {[%clk 0:01:34.8]} 23... Ng4 {[%clk
0:01:10.4]} 24. Bd4 {[%clk 0:01:32.5]} 24... Rd2 {[%clk 0:01:10]} 25. c6 {[%clk
0:01:08.4]} 25... Bf6 {[%clk 0:01:04.6]} 26. Bxf6 {[%clk 0:01:08.3]} 26... gxf6
{[%clk 0:01:05.2]} 27. Re1 {[%clk 0:00:53.1]} 27... Rbb2 {[%clk 0:01:01.2]} 28.
Bh3 {[%clk 0:00:50.8]} 28... f5 {[%clk 0:00:51.9]} 29. f3 {[%clk 0:00:40.4]}
29... Rxh2 {[%clk 0:00:52.5]} 30. Bf1 {[%clk 0:00:27.1]} 30... Bd5 {[%clk
0:00:48.8]} 0-1

[Event "*** Titled Tuesday Blitz"]
[Site "Chess.com"]
[Date "2020.04.28"]
[Round "5"]
[White "hypert"]
[Black "smshk35"]
[Result "1-0"]
[WhiteElo "2539"]
[BlackElo "2374"]
[TimeControl "180+1"]
[EndTime "10:54:41 PDT"]
[Termination "hypert won by checkmate"]

1. e4 {[%clk 0:03:00.9]} 1... c5 {[%clk 0:02:59.2]} 2. Nf3 {[%clk 0:03:00.1]}
2... e6 {[%clk 0:02:59.3]} 3. b3 {[%clk 0:02:58.2]} 3... Nc6 {[%clk 0:02:58.1]}
4. Bb2 {[%clk 0:02:58.4]} 4... a6 {[%clk 0:02:56]} 5. c4 {[%clk 0:02:55]} 5...
Nf6 {[%clk 0:02:51.8]} 6. Nc3 {[%clk 0:02:53.6]} 6... Qc7 {[%clk 0:02:39.4]} 7.
Be2 {[%clk 0:02:49.4]} 7... Nd4 {[%clk 0:02:39.1]} 8. O-O {[%clk 0:02:48.1]}
8... Bd6 {[%clk 0:02:36.2]} 9. h3 {[%clk 0:02:42.6]} 9... b6 {[%clk 0:02:25.5]}
10. Re1 {[%clk 0:02:39.5]} 10... Bb7 {[%clk 0:02:22.7]} 11. Bd3 {[%clk
0:02:39.7]} 11... O-O-O {[%clk 0:02:15.1]} 12. a4 {[%clk 0:02:29.6]} 12... Rdg8
{[%clk 0:02:08.8]} 13. a5 {[%clk 0:02:29.8]} 13... g5 {[%clk 0:02:06.6]} 14.
axb6 {[%clk 0:02:15.7]} 14... Qb8 {[%clk 0:02:02.9]} 15. Nxd4 {[%clk 0:02:11.3]}
15... cxd4 {[%clk 0:02:02]} 16. Na4 {[%clk 0:02:09.8]} 16... g4 {[%clk
0:01:42.4]} 17. h4 {[%clk 0:02:00]} 17... Bh2+ {[%clk 0:01:29]} 18. Kf1 {[%clk
0:01:58.9]} 18... g3 {[%clk 0:01:22.5]} 19. f3 {[%clk 0:01:56.4]} 19... Qf4
{[%clk 0:01:08.7]} 20. Bxd4 {[%clk 0:01:42.7]} 20... e5 {[%clk 0:01:08.4]} 21.
Be3 {[%clk 0:01:28.4]} 21... Qxh4 {[%clk 0:01:08]} 22. Ke2 {[%clk 0:01:24.9]}
22... Nh5 {[%clk 0:00:45.3]} 23. Nc5 {[%clk 0:01:16]} 23... f5 {[%clk
0:00:41.5]} 24. Nxb7 {[%clk 0:01:12.6]} 24... Kxb7 {[%clk 0:00:39.3]} 25. Rxa6
{[%clk 0:01:00.1]} 25... Nf4+ {[%clk 0:00:25.4]} 26. Bxf4 {[%clk 0:00:58.6]}
26... Qxf4 {[%clk 0:00:20.6]} 27. Ra7+ {[%clk 0:00:57.1]} 27... Kxb6 {[%clk
0:00:18.1]} 28. Qa1 {[%clk 0:00:54.9]} 28... Rb8 {[%clk 0:00:16.8]} 29. Qa5+
{[%clk 0:00:48.3]} 29... Kc6 {[%clk 0:00:17.2]} 30. Qc7# {[%clk 0:00:47.7]} 1-0

[Event "*** Titled Tuesday Blitz"]
[Site "Chess.com"]
[Date "2020.04.28"]
[Round "5"]
[White "Man-Chuk"]
[Black "Fighter008"]
[Result "1-0"]
[WhiteElo "2718"]
[BlackElo "2513"]
[TimeControl "180+1"]
[EndTime "10:54:42 PDT"]
[Termination "Man-Chuk won by resignation"]

1. c4 {[%clk 0:02:59.2]} 1... g6 {[%clk 0:02:59]} 2. d4 {[%clk 0:02:56]} 2...
Bg7 {[%clk 0:02:59]} 3. Nc3 {[%clk 0:02:56]} 3... d6 {[%clk 0:02:58.5]} 4. e4
{[%clk 0:02:56.1]} 4... Nf6 {[%clk 0:02:58.6]} 5. Be2 {[%clk 0:02:56.3]} 5...
O-O {[%clk 0:02:58.5]} 6. Be3 {[%clk 0:02:56.9]} 6... Na6 {[%clk 0:02:58.1]} 7.
f4 {[%clk 0:02:52.8]} 7... c5 {[%clk 0:02:45.6]} 8. d5 {[%clk 0:02:51.5]} 8...
e6 {[%clk 0:02:45.8]} 9. Bf3 {[%clk 0:02:41.3]} 9... exd5 {[%clk 0:02:45]} 10.
cxd5 {[%clk 0:02:41]} 10... Re8 {[%clk 0:02:41.4]} 11. h3 {[%clk 0:02:29.4]}
11... b5 {[%clk 0:02:38.3]} 12. Qc2 {[%clk 0:02:11.3]} 12... b4 {[%clk
0:02:37.2]} 13. Nd1 {[%clk 0:02:11.1]} 13... Rb8 {[%clk 0:02:12.8]} 14. Ne2
{[%clk 0:02:02.8]} 14... b3 {[%clk 0:02:12.7]} 15. axb3 {[%clk 0:02:02.5]} 15...
Nb4 {[%clk 0:02:12.7]} 16. Qb1 {[%clk 0:01:31.9]} 16... Ba6 {[%clk 0:01:36.7]}
17. Rxa6 {[%clk 0:01:23.1]} 17... Nxa6 {[%clk 0:01:36.3]} 18. O-O {[%clk
0:01:02.2]} 18... Rxb3 {[%clk 0:01:34.5]} 19. Ndc3 {[%clk 0:01:01.4]} 19... Qb6
{[%clk 0:01:30.6]} 20. Bc1 {[%clk 0:00:59.9]} 20... Nc7 {[%clk 0:01:24.3]} 21.
Qa2 {[%clk 0:00:59.1]} 21... Nd7 {[%clk 0:01:16.1]} 22. Kh2 {[%clk 0:00:54.8]}
22... c4 {[%clk 0:01:11.9]} 23. Qa4 {[%clk 0:00:54.3]} 23... Rb4 {[%clk
0:01:10.1]} 24. Qxd7 {[%clk 0:00:53]} 24... a5 {[%clk 0:00:34.6]} 25. e5 {[%clk
0:00:52.9]} 25... Bf8 {[%clk 0:00:25.3]} 26. Ne4 {[%clk 0:00:50.8]} 26... Nxd5
{[%clk 0:00:24]} 27. Qxe8 {[%clk 0:00:47.6]} 1-0

[Event "*** Titled Tuesday Blitz"]
[Site "Chess.com"]
[Date "2020.04.28"]
[Round "5"]
[White "Oleksandr_Bortnyk"]
[Black "BaMBoMaTTo"]
[Result "1-0"]
[WhiteElo "3002"]
[BlackElo "2628"]
[TimeControl "180+1"]
[EndTime "10:54:43 PDT"]
[Termination "Oleksandr_Bortnyk won by resignation"]

1. e4 {[%clk 0:03:00.9]} 1... c5 {[%clk 0:02:59.6]} 2. Be2 {[%clk 0:02:59.8]}
2... Nc6 {[%clk 0:02:58.5]} 3. f4 {[%clk 0:02:56.3]} 3... g6 {[%clk 0:02:58.1]}
4. Nf3 {[%clk 0:02:55.1]} 4... Bg7 {[%clk 0:02:58.4]} 5. d3 {[%clk 0:02:53.7]}
5... Nf6 {[%clk 0:02:57.2]} 6. O-O {[%clk 0:02:53.5]} 6... O-O {[%clk
0:02:57.4]} 7. c3 {[%clk 0:02:46.6]} 7... d6 {[%clk 0:02:53.3]} 8. Qe1 {[%clk
0:02:45.6]} 8... Bg4 {[%clk 0:02:48.7]} 9. h3 {[%clk 0:02:33.6]} 9... Bxf3
{[%clk 0:02:47.7]} 10. Bxf3 {[%clk 0:02:34.5]} 10... e6 {[%clk 0:02:30.5]} 11.
Be3 {[%clk 0:02:06.5]} 11... Nd7 {[%clk 0:02:22.4]} 12. Nd2 {[%clk 0:02:03.1]}
12... b5 {[%clk 0:02:13.4]} 13. e5 {[%clk 0:01:54.4]} 13... d5 {[%clk
0:02:13.5]} 14. c4 {[%clk 0:01:54.8]} 14... Nb4 {[%clk 0:02:08.6]} 15. Qb1
{[%clk 0:01:47.6]} 15... bxc4 {[%clk 0:01:32.1]} 16. dxc4 {[%clk 0:01:48.5]}
16... d4 {[%clk 0:01:28.1]} 17. Bf2 {[%clk 0:01:48.3]} 17... Rb8 {[%clk
0:01:24.3]} 18. a3 {[%clk 0:01:46.9]} 18... Na6 {[%clk 0:01:24.2]} 19. b3 {[%clk
0:01:30.2]} 19... f6 {[%clk 0:01:23.4]} 20. exf6 {[%clk 0:01:28.5]} 20... Qxf6
{[%clk 0:01:16.9]} 21. Qe4 {[%clk 0:01:23]} 21... Nc7 {[%clk 0:01:02.8]} 22.
Rae1 {[%clk 0:01:07.1]} 22... Rbe8 {[%clk 0:00:36]} 23. Qc6 {[%clk 0:01:03.3]}
23... Qxf4 {[%clk 0:00:35.1]} 24. Qxd7 {[%clk 0:00:53.9]} 24... Rf7 {[%clk
0:00:35.4]} 25. Qc6 {[%clk 0:00:49.3]} 25... Qxd2 {[%clk 0:00:35.5]} 26. Bg3
{[%clk 0:00:44.5]} 26... e5 {[%clk 0:00:34.4]} 27. Bd5 {[%clk 0:00:44.3]} 27...
Nxd5 {[%clk 0:00:26.6]} 28. Qxe8+ {[%clk 0:00:43.9]} 1-0

[Event "*** Titled Tuesday Blitz"]
[Site "Chess.com"]
[Date "2020.04.28"]
[Round "5"]
[White "Abdimalik_Abdisalimov"]
[Black "kuli4ik"]
[Result "0-1"]
[WhiteElo "2795"]
[BlackElo "2716"]
[TimeControl "180+1"]
[EndTime "10:54:45 PDT"]
[Termination "kuli4ik won by resignation"]

1. d4 {[%clk 0:02:59.5]} 1... d5 {[%clk 0:02:58.8]} 2. c4 {[%clk 0:02:58.4]}
2... c6 {[%clk 0:02:59.2]} 3. Nf3 {[%clk 0:02:56.3]} 3... Nf6 {[%clk 0:02:59.1]}
4. Nc3 {[%clk 0:02:51.8]} 4... dxc4 {[%clk 0:02:57.9]} 5. a4 {[%clk 0:02:51.5]}
5... Bf5 {[%clk 0:02:57.4]} 6. Ne5 {[%clk 0:02:51.6]} 6... Na6 {[%clk
0:02:56.3]} 7. f3 {[%clk 0:02:41.5]} 7... Nd7 {[%clk 0:02:55.2]} 8. Nxc4 {[%clk
0:02:34]} 8... e5 {[%clk 0:02:54.3]} 9. e4 {[%clk 0:02:15.7]} 9... exd4 {[%clk
0:02:47.8]} 10. Qxd4 {[%clk 0:02:15.4]} 10... Be6 {[%clk 0:02:35.7]} 11. Nd6+
{[%clk 0:02:12.2]} 11... Bxd6 {[%clk 0:02:35]} 12. Qxd6 {[%clk 0:02:12.8]} 12...
Ndc5 {[%clk 0:02:35.6]} 13. Qg3 {[%clk 0:01:39.9]} 13... Qd4 {[%clk 0:02:17.8]}
14. Bxa6 {[%clk 0:00:55.7]} 14... bxa6 {[%clk 0:02:17.5]} 15. Ne2 {[%clk
0:00:55.8]} 15... Qb4+ {[%clk 0:02:12.7]} 16. Kf1 {[%clk 0:00:28.9]} 16... O-O-O
{[%clk 0:02:11.2]} 17. Nc3 {[%clk 0:00:20.4]} 17... Bc4+ {[%clk 0:02:05.9]} 18.
Kg1 {[%clk 0:00:18.4]} 18... Nb3 {[%clk 0:02:05]} 19. Rb1 {[%clk 0:00:18.4]}
19... Bd3 {[%clk 0:01:58.5]} 20. Bf4 {[%clk 0:00:04.2]} 20... Bxb1 {[%clk
0:01:54.4]} 21. h4 {[%clk 0:00:04.5]} 21... Bd3 {[%clk 0:01:42.9]} 22. Qxg7
{[%clk 0:00:04.6]} 22... Qd4+ {[%clk 0:01:39.1]} 23. Qxd4 {[%clk 0:00:04]} 23...
Nxd4 {[%clk 0:01:38.9]} 24. Kf2 {[%clk 0:00:04.1]} 24... Rhg8 {[%clk 0:01:34.8]}
25. g4 {[%clk 0:00:04.3]} 25... Kb7 {[%clk 0:01:27.5]} 26. Be5 {[%clk
0:00:03.4]} 26... Ne6 {[%clk 0:01:22.3]} 27. g5 {[%clk 0:00:03.4]} 27... a5
{[%clk 0:01:19.7]} 28. f4 {[%clk 0:00:01.7]} 28... Nc5 {[%clk 0:01:15.5]} 29.
Ke3 {[%clk 0:00:01.6]} 29... Bc4 {[%clk 0:01:12.6]} 30. Bd4 {[%clk 0:00:02.1]}
30... Ne6 {[%clk 0:01:08.1]} 31. Bf6 {[%clk 0:00:03]} 31... Rd3+ {[%clk
0:01:07.2]} 32. Kf2 {[%clk 0:00:03]} 32... Nxf4 {[%clk 0:01:07.5]} 0-1

[Event "*** Titled Tuesday Blitz"]
[Site "Chess.com"]
[Date "2020.04.28"]
[Round "5"]
[White "RianKapriaga"]
[Black "Ekka83"]
[Result "0-1"]
[WhiteElo "2185"]
[BlackElo "2358"]
[TimeControl "180+1"]
[EndTime "10:54:45 PDT"]
[Termination "Ekka83 won by resignation"]

1. d4 {[%clk 0:03:00.7]} 1... Nf6 {[%clk 0:02:55.3]} 2. Nf3 {[%clk 0:03:00.9]}
2... d5 {[%clk 0:02:51.7]} 3. Bf4 {[%clk 0:03:01.1]} 3... c5 {[%clk 0:02:51]} 4.
e3 {[%clk 0:03:00.9]} 4... Nc6 {[%clk 0:02:48.5]} 5. Nbd2 {[%clk 0:03:00.5]}
5... cxd4 {[%clk 0:02:46.2]} 6. exd4 {[%clk 0:03:00.2]} 6... Qb6 {[%clk
0:02:46]} 7. Nb3 {[%clk 0:02:59.3]} 7... Bg4 {[%clk 0:02:44.7]} 8. Be2 {[%clk
0:02:57.5]} 8... e6 {[%clk 0:02:44.3]} 9. O-O {[%clk 0:02:54.1]} 9... Be7 {[%clk
0:02:44.4]} 10. c3 {[%clk 0:02:52.1]} 10... O-O {[%clk 0:02:43.8]} 11. h3 {[%clk
0:02:49.3]} 11... Bh5 {[%clk 0:02:43.6]} 12. Re1 {[%clk 0:02:47.7]} 12... a5
{[%clk 0:02:43.2]} 13. a4 {[%clk 0:02:43]} 13... Ne4 {[%clk 0:02:36.2]} 14. Nfd2
{[%clk 0:02:15.7]} 14... Bg6 {[%clk 0:02:26.8]} 15. Nxe4 {[%clk 0:02:13.5]}
15... Bxe4 {[%clk 0:02:27.7]} 16. Ra2 {[%clk 0:01:59.9]} 16... Bf6 {[%clk
0:02:19.9]} 17. Nd2 {[%clk 0:01:51.6]} 17... Bg6 {[%clk 0:02:16.7]} 18. Nb1
{[%clk 0:01:48.7]} 18... Nxd4 {[%clk 0:01:46.4]} 19. cxd4 {[%clk 0:01:41.8]}
19... Bxd4 {[%clk 0:01:46.3]} 20. Rf1 {[%clk 0:01:35.9]} 20... Bxb2 {[%clk
0:01:45.4]} 21. Na3 {[%clk 0:01:32.4]} 21... Qb4 {[%clk 0:01:34.8]} 22. Nb5
{[%clk 0:01:30.1]} 22... Qxf4 {[%clk 0:01:25.1]} 23. Rxb2 {[%clk 0:01:27.3]}
23... Rac8 {[%clk 0:01:22.5]} 24. Bd3 {[%clk 0:01:23.9]} 24... Bxd3 {[%clk
0:01:19.4]} 25. Qxd3 {[%clk 0:01:23.1]} 25... Qxa4 {[%clk 0:01:19.6]} 26. Rfb1
{[%clk 0:01:16.7]} 26... Qf4 {[%clk 0:01:06.3]} 27. Nd4 {[%clk 0:01:06.8]} 27...
Rc1+ {[%clk 0:01:04.4]} 28. Rxc1 {[%clk 0:00:51.4]} 28... Qxc1+ {[%clk
0:01:05.3]} 29. Kh2 {[%clk 0:00:51]} 29... Qxb2 {[%clk 0:01:05.5]} 30. Nf3
{[%clk 0:00:49.2]} 30... a4 {[%clk 0:01:03.5]} 31. g3 {[%clk 0:00:46.8]} 31...
Qxf2+ {[%clk 0:01:02.6]} 32. Kh1 {[%clk 0:00:46.2]} 32... h6 {[%clk 0:00:59.3]}
33. Qd4 {[%clk 0:00:42.7]} 33... Qxf3+ {[%clk 0:00:58.1]} 34. Kh2 {[%clk
0:00:41.7]} 34... Rc8 {[%clk 0:00:55.5]} 0-1

[Event "*** Titled Tuesday Blitz"]
[Site "Chess.com"]
[Date "2020.04.28"]
[Round "5"]
[White "Semetey"]
[Black "czasnaszachy"]
[Result "1-0"]
[WhiteElo "2550"]
[BlackElo "2309"]
[TimeControl "180+1"]
[EndTime "10:54:47 PDT"]
[Termination "Semetey won on time"]

1. Nf3 {[%clk 0:02:59.1]} 1... g6 {[%clk 0:02:56.4]} 2. d4 {[%clk 0:02:35.3]}
2... Bg7 {[%clk 0:02:55.7]} 3. e3 {[%clk 0:02:33.6]} 3... Nf6 {[%clk 0:02:54.7]}
4. c4 {[%clk 0:02:32.8]} 4... O-O {[%clk 0:02:54.5]} 5. Nc3 {[%clk 0:02:33.3]}
5... d6 {[%clk 0:02:54.6]} 6. b3 {[%clk 0:02:33.2]} 6... Nfd7 {[%clk 0:02:55]}
7. Bb2 {[%clk 0:02:33.2]} 7... e5 {[%clk 0:02:55.7]} 8. Be2 {[%clk 0:02:33.1]}
8... Nc6 {[%clk 0:02:55.5]} 9. O-O {[%clk 0:02:31.8]} 9... f5 {[%clk 0:02:54.3]}
10. dxe5 {[%clk 0:02:26]} 10... dxe5 {[%clk 0:02:53.6]} 11. e4 {[%clk
0:02:24.6]} 11... f4 {[%clk 0:02:50]} 12. Nd5 {[%clk 0:02:18.4]} 12... Re8
{[%clk 0:02:08.5]} 13. b4 {[%clk 0:02:15]} 13... Nf6 {[%clk 0:01:49.4]} 14. b5
{[%clk 0:02:09]} 14... Nxd5 {[%clk 0:01:24.7]} 15. cxd5 {[%clk 0:02:02.7]} 15...
Nb8 {[%clk 0:01:21.6]} 16. Rc1 {[%clk 0:01:57.2]} 16... g5 {[%clk 0:01:13.5]}
17. h3 {[%clk 0:01:49.9]} 17... h5 {[%clk 0:01:11.4]} 18. Nh2 {[%clk 0:01:48.7]}
18... h4 {[%clk 0:01:05.9]} 19. Qc2 {[%clk 0:01:44.7]} 19... Re7 {[%clk
0:00:52.6]} 20. Ba3 {[%clk 0:01:43.9]} 20... Rf7 {[%clk 0:00:51.7]} 21. Bh5
{[%clk 0:01:42.8]} 21... Rd7 {[%clk 0:00:49.8]} 22. Bg4 {[%clk 0:01:42.2]} 22...
Rf7 {[%clk 0:00:48]} 23. Be6 {[%clk 0:01:40.2]} 23... Bxe6 {[%clk 0:00:46.2]}
24. dxe6 {[%clk 0:01:41.1]} 24... Rf6 {[%clk 0:00:39]} 25. e7 {[%clk 0:01:40.8]}
25... Qe8 {[%clk 0:00:35.3]} 26. Qxc7 {[%clk 0:01:30.8]} 26... Nd7 {[%clk
0:00:34.6]} 27. Rfd1 {[%clk 0:01:31.1]} 27... Nb6 {[%clk 0:00:27.3]} 28. Rd8
{[%clk 0:01:30.1]} 28... Rxd8 {[%clk 0:00:24.1]} 29. exd8=Q {[%clk 0:01:27.2]}
29... Qxd8 {[%clk 0:00:15.1]} 30. Qxd8+ {[%clk 0:01:26.5]} 30... Kh7 {[%clk
0:00:15.6]} 31. Ng4 {[%clk 0:01:24.6]} 31... Rg6 {[%clk 0:00:13.9]} 32. Rc7
{[%clk 0:01:17.3]} 1-0

[Event "*** Titled Tuesday Blitz"]
[Site "Chess.com"]
[Date "2020.04.28"]
[Round "5"]
[White "YQPerez"]
[Black "Meri-Arabidze"]
[Result "1-0"]
[WhiteElo "2957"]
[BlackElo "2623"]
[TimeControl "180+1"]
[EndTime "10:54:48 PDT"]
[Termination "YQPerez won on time"]

1. e4 {[%clk 0:03:00.9]} 1... c5 {[%clk 0:02:59.7]} 2. c3 {[%clk 0:03:00.9]}
2... e6 {[%clk 0:02:59]} 3. d4 {[%clk 0:03:00.2]} 3... d5 {[%clk 0:02:59]} 4. e5
{[%clk 0:02:59.7]} 4... Bd7 {[%clk 0:02:56.7]} 5. Nf3 {[%clk 0:02:59.7]} 5...
Qb6 {[%clk 0:02:56]} 6. a3 {[%clk 0:02:59]} 6... Bb5 {[%clk 0:02:52.2]} 7. c4
{[%clk 0:02:59.1]} 7... Bxc4 {[%clk 0:02:48.3]} 8. Bxc4 {[%clk 0:02:58.3]} 8...
dxc4 {[%clk 0:02:48.5]} 9. d5 {[%clk 0:02:57.5]} 9... Nd7 {[%clk 0:02:33.4]} 10.
O-O {[%clk 0:02:52.9]} 10... O-O-O {[%clk 0:02:27]} 11. d6 {[%clk 0:02:32]}
11... f6 {[%clk 0:02:16.7]} 12. Nbd2 {[%clk 0:02:30.3]} 12... Nxe5 {[%clk
0:02:13.8]} 13. Nxe5 {[%clk 0:02:29]} 13... fxe5 {[%clk 0:02:14.7]} 14. Nxc4
{[%clk 0:02:29.4]} 14... Qa6 {[%clk 0:01:59.7]} 15. Qg4 {[%clk 0:02:20.3]} 15...
Bxd6 {[%clk 0:01:23]} 16. Qxe6+ {[%clk 0:02:17.3]} 16... Kc7 {[%clk 0:01:22.6]}
17. Rd1 {[%clk 0:01:36.7]} 17... Nf6 {[%clk 0:01:17.9]} 18. Nxd6 {[%clk
0:01:24.4]} 18... Rxd6 {[%clk 0:01:17]} 19. Qe7+ {[%clk 0:01:24.3]} 19... Nd7
{[%clk 0:01:10.2]} 20. Be3 {[%clk 0:01:15]} 20... Qc6 {[%clk 0:00:33.6]} 21.
Bxc5 {[%clk 0:00:51.9]} 21... Rxd1+ {[%clk 0:00:24.8]} 22. Rxd1 {[%clk
0:00:51.1]} 22... Kc8 {[%clk 0:00:10.8]} 23. Be3 {[%clk 0:00:40.8]} 1-0